bitfinex/quotes_ETHUSD_20250523
["timestamp","ask_amount","ask_price","bid_price","bid_amount"]
[1747981953388,3.7574209,2661.4,2661.3,16.213]
[1747981953712,3.7574209,2661.4,2661.3,46.154]
[1747981953881,1.6117,2662.3,2661.3,46.154]
[1747981953882,3.7573258,2661.5,2661.3,16.213]
[1747981954090,3.7573258,2661.5,2661.4,29.941]
[1747981954408,3.7573258,2661.5,2661.3,16.213]
[1747981954409,3.7574209,2661.4,2661.3,16.213]
[1747981954799,3.7574209,2661.4,2661.3,46.152]
[1747981955606,3.7574209,2661.4,2661.3,34.894]
[1747981957518,3.75729092,2661.5,2661.3,34.894]
[1747981957715,1.534,2662.0,2661.3,38.64402344]
[1747981957922,3.75705936,2661.7,2661.3,38.64402344]
[1747981958090,8.0,2662.1,2661.3,38.64402344]
[1747981958296,3.75708931,2661.7,2661.3,38.64402344]
[1747981958823,3.75687771,2661.8,2661.3,38.64402344]
[1747981959117,3.75687771,2661.8,2661.4,3.75002344]
[1747981959328,6.0,2662.2,2661.4,3.75002344]
[1747981959616,3.36670939,2661.7,2661.4,3.75002344]
[1747981959920,3.75689272,2661.8,2661.4,3.75002344]
[1747981960123,3.75700684,2661.7,2661.5,3.75002344]
[1747981960299,9.75632569,2662.2,2661.3,16.213]
[1747981960624,3.75739742,2661.5,2661.3,16.213]
[1747981960925,3.75770329,2661.2,2661.1,0.02]
[1747981961084,12.30770329,2661.2,2661.1,0.02]
[1747981963531,13.85380329,2661.2,2661.1,0.02]
[1747981964400,13.8580507,2660.6,2660.5,16.212]
[1747981964815,3.75840931,2660.8,2660.5,27.471]
[1747981965048,1.5495,2661.7,2660.7,1.103]
[1747981965217,1.5495,2661.7,2660.8,0.03757745]
[1747981965416,3.75755723,2661.4,2660.7,1.103]
[1747981965614,2.0325833,2662.2,2660.8,1.103]
[1747981965826,1.6323,2663.1,2661.5,1.103]
[1747981966123,1.6323,2663.1,2660.9,1.2861348]
[1747981966124,3.75516334,2663.0,2661.7,1.103]
[1747981966310,3.75671512,2661.9,2661.8,3.75002344]
[1747981966512,3.75659574,2662.0,2661.7,1.103]
[1747981966739,3.75648288,2662.1,2661.8,29.827]
[1747981966940,0.02,2662.9,2661.8,29.827]
[1747981967105,3.75628843,2662.3,2661.8,29.827]
[1747981967307,3.75614575,2662.4,2661.9,3.093]
[1747981967508,3.75618655,2662.3,2661.9,3.093]
[1747981968360,3.75630818,2662.2,2662.0,29.827]
[1747981968551,3.75612304,2662.4,2662.0,29.827]
[1747981968708,3.75558451,2662.8,2662.0,29.827]
[1747981968903,3.75569032,2662.7,2662.2,1.103]
[1747981969145,0.02,2662.9,2662.2,1.103]
[1747981969146,3.75597825,2662.5,2662.2,1.103]
[1747981969520,3.75546049,2662.8,2662.2,1.103]
[1747981969710,3.75558643,2662.7,2662.2,1.103]
[1747981969905,3.75584251,2662.6,2662.2,1.103]
[1747981970105,3.75588444,2662.5,2662.2,1.103]
[1747981970312,0.02,2662.9,2662.2,4.5252]
[1747981970732,3.75586237,2662.6,2662.2,4.5252]
[1747981971038,3.75586258,2662.6,2662.2,4.5252]
[1747981971549,0.02,2662.9,2662.2,4.5252]
[1747981971746,0.02,2662.9,2662.3,3.75615069]
[1747981971951,0.02,2662.9,2662.4,4.95975798]
[1747981972168,0.02,2662.9,2662.4,1.20376133]
[1747981972329,0.02,2662.9,2662.5,1.103]
[1747981972662,0.02,2662.9,2662.6,49.78764047]
[1747981972825,3.77533374,2662.9,2662.6,16.21]
[1747981973150,3.75544539,2662.8,2662.7,29.821]
[1747981973355,0.02,2662.9,2662.7,29.821]
[1747981973356,3.77533473,2662.9,2662.7,29.821]
[1747981973552,3.75544539,2662.8,2662.7,29.821]
[1747981973716,0.02,2662.9,2662.7,29.821]
[1747981974049,3.75544539,2662.8,2662.6,16.21]
[1747981974250,3.75322832,2662.7,2662.6,16.21]
[1747981974555,3.75322832,2662.7,2662.6,34.774]
[1747981975638,4.06569198,2662.7,2662.6,34.774]
[1747981975836,0.31246366,2662.7,2662.6,34.774]
[1747981976053,4.06805009,2662.7,2662.6,34.774]
[1747981976252,0.31246366,2662.7,2662.6,34.774]
[1747981976553,0.31246366,2662.7,2662.6,38.52402344]
[1747981976939,3.77539261,2662.9,2662.6,38.52402344]
[1747981977142,3.7555853,2662.8,2662.7,18.562]
[1747981977344,3.7555853,2662.8,2662.6,16.21]
[1747981977345,3.75558643,2662.7,2662.6,16.21]
[1747981977547,3.75558643,2662.7,2662.6,46.028]
[1747981978257,3.75558643,2662.7,2662.6,16.21]
[1747981978459,3.75671512,2661.9,2661.8,19.15828695]
[1747981979251,3.75713856,2661.6,2661.5,16.207]
[1747981979446,3.75713856,2661.6,2661.5,34.767]
[1747981980355,13.33483856,2661.6,2661.5,16.207]
[1747981980952,3.75699939,2661.7,2661.5,16.207]
[1747981981158,1.5852,2662.0,2661.5,16.207]
[1747981981159,3.75713856,2661.6,2661.5,16.207]
[1747981981970,3.75713856,2661.6,2661.5,28.565]
[1747981982140,3.75675474,2661.9,2661.5,29.38674844]
[1747981982467,1.5437,2662.6,2661.5,29.38674844]
[1747981982840,3.75713856,2661.6,2661.5,17.31]
[1747981983166,3.75713856,2661.6,2661.5,16.207]
[1747981983378,3.75743263,2661.4,2661.3,16.208]
[1747981983544,3.75743263,2661.4,2661.3,34.77]
[1747981983943,11.75743263,2661.4,2661.3,34.77]
[1747981984332,11.75743263,2661.4,2661.3,34.771]
[1747981984559,13.41823263,2661.4,2661.3,16.208]
[1747981985088,13.41823263,2661.4,2661.3,34.771]
[1747981986871,11.75743263,2661.4,2661.3,34.771]
[1747981987383,11.75857853,2660.6,2660.5,16.209]
[1747981987671,11.75857853,2660.6,2660.5,34.774]
[1747981988056,13.29677853,2660.6,2660.5,16.209]
[1747981988246,13.29677853,2660.6,2660.5,34.664]
[1747981988571,3.75791482,2661.1,2660.5,34.664]
[1747981988572,3.75770329,2661.2,2660.5,34.664]
[1747981988736,3.75770329,2661.2,2660.6,14.7244]
[1747981988936,3.75770329,2661.2,2660.5,34.664]
[1747981988937,3.75826819,2660.8,2660.7,18.455]
[1747981990043,5.26745246,2661.7,2660.7,18.455]
[1747981990246,3.75713856,2661.6,2660.7,18.455]
[1747981990436,3.75826819,2660.8,2660.7,18.455]
[1747981991062,3.75785569,2661.1,2660.7,29.716]
[1747981991260,3.75822724,2660.9,2660.7,29.716]
[1747981991436,3.75826819,2660.8,2660.7,29.716]
[1747981991637,3.75818603,2660.9,2660.7,33.46602344]
[1747981991839,8.0,2660.9,2660.7,33.46602344]
[1747981992053,3.75814553,2660.9,2660.7,33.46602344]
[1747981992450,3.75814553,2660.9,2660.1,3.77922212]
[1747981992451,3.7585507,2660.6,2660.1,0.02]
[1747981992660,5.40371585,2660.2,2660.1,0.02]
[1747981992865,13.40371585,2660.2,2660.1,0.02]
[1747981993663,11.75911585,2660.2,2660.1,18.478]
[1747981994256,13.83551585,2660.2,2660.1,0.02]
[1747981994896,3.76052948,2659.2,2659.0,11.259]
[1747981995059,3.76052948,2659.2,2658.9,16.213]
[1747981995241,11.76052948,2659.2,2659.1,18.478]
[1747981995680,13.83692948,2659.2,2659.1,0.02]
[1747981995840,3.76194417,2658.2,2658.1,18.478]
[1747981996044,8.0,2658.6,2658.1,18.79205237]
[1747981996241,3.76156948,2658.5,2658.1,18.478]
[1747981996479,3.76140786,2658.6,2658.1,20.37506599]
[1747981996650,3.76140786,2658.6,2658.1,20.41506599]
[1747981996852,8.0,2658.7,2658.1,20.41506599]
[1747981996853,3.76162343,2658.5,2658.1,20.41506599]
[1747981997278,3.76168359,2658.4,2658.2,29.724]
[1747981997580,3.76180265,2658.3,2658.2,29.724]
[1747981997766,8.0,2658.8,2658.1,0.06]
[1747981997966,8.0,2658.8,2658.2,18.462]
[1747981998173,9.5264,2659.2,2658.2,29.724]
[1747981998470,8.0,2658.6,2658.2,29.724]
[1747981998651,3.76002832,2659.6,2658.3,16.217]
[1747981998652,1.5631,2659.6,2658.3,16.217]
[1747981998843,3.76086462,2659.0,2658.4,3.75002344]
[1747981999048,3.76033804,2659.4,2658.4,3.75002344]
[1747981999275,3.7611587,2658.8,2658.4,3.75002344]
[1747981999456,3.76033804,2659.4,2658.3,16.217]
[1747981999457,3.76166114,2658.4,2658.3,16.217]
[1747981999645,11.76166114,2658.4,2658.3,34.683]
[1747982000578,1.5421,2659.2,2658.3,34.683]
[1747982000781,3.76144647,2658.6,2658.3,34.683]
[1747982000986,8.55,2659.4,2658.3,34.683]
[1747982000987,1.6644,2659.7,2658.4,0.04]
[1747982001285,3.76043007,2659.3,2658.6,3.76137816]
[1747982001455,1.6644,2659.7,2658.4,0.04]
[1747982001645,3.76091729,2659.0,2658.5,29.73]
[1747982001844,3.76091729,2659.0,2658.4,5.76620178]
[1747982002158,3.76098227,2658.9,2658.4,2.00459647]
[1747982002357,0.55,2659.5,2658.5,29.732]
[1747982002560,0.43099639,2659.4,2658.3,16.217]
[1747982002752,3.76160649,2658.5,2658.4,29.733]
[1747982003085,3.76160649,2658.5,2658.4,18.468]
[1747982003587,11.76160649,2658.5,2658.4,18.468]
[1747982003758,8.0,2658.5,2658.3,16.217]
[1747982004083,8.0,2658.5,2658.4,18.468]
[1747982004985,8.0,2658.5,2658.3,16.217]
[1747982004986,11.76151965,2658.5,2658.3,16.217]
[1747982005173,11.76151965,2658.5,2658.4,29.733]
[1747982005484,3.76148121,2658.6,2658.3,16.217]
[1747982005485,3.76166114,2658.4,2658.3,16.217]
[1747982005991,1.6607,2659.3,2658.3,31.24570733]
[1747982006194,18.47,2660.5,2658.3,27.484]
[1747982006195,1.6607,2660.1,2658.3,27.484]
[1747982006348,1.6607,2660.1,2658.9,0.04]
[1747982006550,5.42001948,2660.1,2659.0,29.737]
[1747982006844,3.75966733,2659.9,2659.0,29.737]
[1747982007050,3.75920372,2660.2,2659.1,0.04]
[1747982007290,3.75840944,2660.7,2659.5,3.76000222]
[1747982007486,3.75982253,2659.7,2659.6,45.962]
[1747982007807,3.75982253,2659.7,2659.6,16.225]
[1747982008321,1.6065,2660.5,2659.6,20.02492932]
[1747982008612,1.6265,2660.9,2659.7,29.736]
[1747982008810,5.38471912,2660.9,2659.7,33.48602344]
[1747982009103,11.75897524,2660.3,2659.7,33.48602344]
[1747982009311,3.75880124,2660.5,2659.7,33.48602344]
[1747982009600,3.75887594,2660.4,2659.7,37.24580689]
[1747982009805,3.75887594,2660.4,2659.8,3.75002344]
[1747982010105,3.75898252,2660.3,2659.8,3.75002344]
[1747982010255,3.75892392,2660.4,2659.9,29.735]
[1747982010449,5.38468853,2660.9,2659.9,18.469]
[1747982010450,0.55,2660.5,2659.9,18.469]
[1747982010688,3.75939849,2660.0,2659.9,18.469]
[1747982010989,11.75939849,2660.0,2659.9,18.469]
[1747982013683,3.75883325,2660.4,2659.9,18.469]
[1747982014089,3.75886417,2660.4,2659.9,18.469]
[1747982014390,3.75915566,2660.2,2660.0,1.8469]
[1747982014581,11.75925717,2660.1,2660.0,18.468]
[1747982015996,11.75925717,2660.1,2659.6,16.225]
[1747982015997,3.75982253,2659.7,2659.6,16.225]
[1747982016291,3.75982253,2659.7,2659.6,34.693]
[1747982016957,3.75982253,2659.7,2659.6,45.959]
[1747982017196,3.75982253,2659.7,2659.6,34.693]
[1747982017867,11.75973536,2659.8,2659.6,34.693]
[1747982018198,3.75936135,2660.1,2659.6,35.75181125]
[1747982018380,5.95335304,2660.6,2659.7,0.04]
[1747982018381,1.6447,2660.6,2659.7,0.04]
[1747982018569,1.6447,2660.6,2659.7,3.79002344]
[1747982018770,3.7593538,2660.1,2659.7,3.79002344]
[1747982019297,3.75968117,2659.8,2659.7,0.04]
[1747982019457,3.75968117,2659.8,2659.7,11.305]
[1747982019793,3.75968117,2659.8,2659.7,0.04]
[1747982020000,3.75968117,2659.8,2659.6,34.693]
[1747982020001,3.75982253,2659.7,2659.6,16.225]
[1747982020154,3.75982253,2659.7,2659.6,34.613]
[1747982020155,4.30982253,2659.7,2659.6,34.613]
[1747982020362,12.30982253,2659.7,2659.6,34.613]
[1747982020557,12.30982253,2659.7,2659.6,16.225]
[1747982020756,0.55,2659.5,2659.2,18.388]
[1747982021097,8.0,2659.6,2659.2,18.388]
[1747982021098,13.92298807,2659.3,2659.2,18.388]
[1747982021304,13.37298807,2659.3,2659.2,18.388]
[1747982021661,13.37298807,2659.3,2658.0,0.59431248]
[1747982021662,1.6126,2658.6,2658.0,0.59431248]
[1747982021880,8.0,2658.7,2658.2,18.388]
[1747982022092,8.0,2658.5,2658.2,18.388]
[1747982022278,3.76161074,2658.5,2658.2,18.388]
[1747982022596,11.76130703,2658.7,2658.2,18.388]
[1747982022900,3.76180265,2658.3,2658.2,20.2288]
[1747982023208,3.7615679,2658.5,2658.3,11.265]
[1747982023563,8.0,2658.5,2658.3,11.265]
[1747982023760,6.0,2660.5,2658.4,18.43]
[1747982023990,1.5289,2659.7,2658.5,3.76149452]
[1747982024299,1.5289,2659.7,2658.4,18.43]
[1747982024470,1.5289,2659.7,2658.5,1.843]
[1747982024679,8.0,2659.1,2658.5,5.60451206]
[1747982024869,8.0,2659.2,2658.6,15.02726714]
[1747982025070,3.7606145,2659.2,2658.7,16.224]
[1747982025407,1.5289,2659.7,2658.7,19.12698295]
[1747982025408,3.7599639,2659.6,2658.7,19.12698295]
[1747982025710,3.75944825,2660.0,2658.8,3.76109523]
[1747982026010,6.0,2660.5,2658.9,0.04]
[1747982026011,1.524,2660.1,2658.9,0.04]
[1747982026213,0.02,2659.9,2659.0,18.391]
[1747982026510,3.7606709,2659.1,2658.9,0.04]
[1747982026809,3.76043861,2659.3,2659.1,29.657]
[1747982027014,3.76052948,2659.2,2659.1,29.657]
[1747982027666,3.76039126,2659.3,2659.1,29.657]
[1747982028011,3.75996637,2659.6,2659.1,29.657]
[1747982028207,3.76009746,2659.6,2659.1,29.657]
[1747982028424,0.02,2659.9,2659.1,29.657]
[1747982028719,3.76006808,2659.6,2659.1,29.657]
[1747982028884,0.02,2659.9,2659.3,0.04]
[1747982029408,0.02,2659.9,2659.4,3.76024667]
[1747982029613,0.02,2659.9,2659.4,3.76018633]
[1747982030611,0.02,2659.9,2659.3,3.80033519]
[1747982030937,0.02,2659.9,2659.7,0.04]
[1747982031088,0.02,2659.9,2659.8,45.882]
[1747982031285,3.77953983,2659.9,2659.8,34.615]
[1747982031503,3.77953983,2659.9,2659.8,45.882]
[1747982031902,0.02,2659.9,2659.8,45.882]
[1747982032099,3.77953983,2659.9,2659.8,45.882]
[1747982032321,3.77953983,2659.9,2659.8,45.88]
[1747982032625,3.7606709,2659.1,2659.0,16.263]
[1747982032828,3.7606709,2659.1,2659.0,34.612]
[1747982033203,3.7606709,2659.1,2659.0,16.223]
[1747982033385,3.7606709,2659.1,2659.0,34.612]
[1747982036034,11.7606709,2659.1,2659.0,34.612]
[1747982036226,13.31279137,2659.1,2659.0,34.612]
[1747982036648,13.31279137,2659.1,2659.0,16.223]
[1747982037836,0.77389418,2659.9,2659.0,16.223]
[1747982038141,0.77389418,2659.9,2659.0,34.613]
[1747982038142,3.7606709,2659.1,2659.0,34.613]
[1747982038491,11.7606709,2659.1,2659.0,16.223]
[1747982038707,11.7606709,2659.1,2658.2,0.04]
[1747982038708,8.0,2659.0,2658.2,0.04]
[1747982039032,1.542,2659.4,2658.3,18.392]
[1747982039331,8.0,2659.1,2658.3,18.392]
[1747982039554,3.7615374,2658.5,2658.3,18.392]
[1747982039784,3.76137235,2658.7,2658.4,11.268]
[1747982040004,3.76055526,2659.2,2658.4,15.02962699]
[1747982040137,1.5302,2659.8,2658.8,3.76109523]
[1747982040333,1.5302,2659.8,2658.9,29.66]
[1747982040334,3.76081233,2659.0,2658.9,29.66]
[1747982040979,3.76071201,2659.1,2658.9,29.66]
[1747982041132,3.76081233,2659.0,2658.9,29.66]
[1747982041536,3.76070315,2659.1,2658.9,29.66]
[1747982041732,3.76081233,2659.0,2658.9,29.66]
[1747982041965,11.76028675,2659.4,2658.7,0.04]
[1747982041966,3.76109523,2658.8,2658.7,0.04]
[1747982042178,1.17602868,2659.3,2658.7,18.432]
[1747982042378,1.5302,2659.8,2658.7,18.432]
[1747982042548,3.76042713,2659.3,2658.7,22.19322329]
[1747982042751,3.76053443,2659.2,2658.7,18.432]
[1747982042954,3.76015127,2659.5,2658.7,18.432]
[1747982043179,1.6384,2659.6,2658.1,16.266]
[1747982043379,0.55,2659.3,2658.5,11.268]
[1747982043876,8.0,2659.2,2658.5,11.268]
[1747982044644,8.0,2659.2,2658.6,0.04]
[1747982044869,8.0,2659.2,2658.6,1.1708]
[1747982045480,21.76635372,2664.0,2658.6,1.1708]
[1747982045481,1.6089,2660.1,2658.7,0.04]
[1747982045636,1.6089,2660.1,2658.8,18.393]
[1747982045839,1.6089,2660.1,2658.9,0.04]
[1747982046179,1.6089,2660.1,2659.0,29.661]
[1747982046384,0.55,2660.0,2659.1,18.393]
[1747982046770,0.23789,2659.9,2659.1,18.393]
[1747982047568,0.55,2659.8,2659.1,16.226]
[1747982047774,1.6071,2659.7,2659.2,18.393]
[1747982047987,0.55,2659.6,2659.2,18.393]
[1747982048300,0.55,2659.4,2659.2,18.393]
[1747982048462,1.01571,2659.3,2659.2,18.393]
[1747982048663,0.55,2659.4,2659.2,18.393]
[1747982049199,1.6071,2659.5,2659.2,18.393]
[1747982050567,2.075,2659.8,2659.2,18.393]
[1747982050772,10.075,2659.8,2659.2,18.393]
[1747982051085,2.075,2659.8,2659.1,16.226]
[1747982051293,2.075,2659.8,2659.2,18.321]
[1747982051998,1.525,2659.8,2659.2,18.321]
[1747982052203,1.525,2659.8,2659.2,18.74107941]
[1747982052409,1.525,2659.8,2659.2,18.321]
[1747982053197,0.55,2659.7,2659.2,18.321]
[1747982053370,1.5463,2659.6,2659.2,18.321]
[1747982054001,0.55,2659.5,2659.2,18.321]
[1747982055417,1.5463,2659.6,2659.2,18.321]
[1747982055589,6.0,2659.8,2659.3,1.8321]
[1747982055911,6.0,2659.8,2659.2,18.321]
[1747982056612,0.02,2659.9,2659.4,0.04]
[1747982059069,0.02,2659.9,2659.3,16.226]
[1747982059070,0.02,2660.9,2659.6,0.04]
[1747982059511,0.02,2660.9,2659.7,0.04]
[1747982059696,0.02,2660.9,2659.9,0.04]
[1747982059895,0.02,2660.9,2660.0,11.306]
[1747982060172,0.02,2660.9,2660.1,0.04]
[1747982062991,0.02,2660.9,2660.3,0.04]
[1747982063195,1.5944,2661.9,2660.7,0.04]
[1747982063399,0.31246366,2661.8,2660.7,0.04]
[1747982063800,0.31246366,2661.8,2660.4,34.536]
[1747982063801,0.31246366,2661.8,2661.0,0.55]
[1747982064110,0.31246366,2661.8,2661.2,0.04]
[1747982064311,0.31246366,2661.8,2661.3,0.04]
[1747982064510,0.31246366,2661.8,2661.4,16.221]
[1747982064712,0.31246366,2661.8,2661.4,34.576]
[1747982065109,0.02,2661.9,2661.4,34.576]
[1747982065922,0.02,2661.9,2661.5,0.04]
[1747982066119,0.02,2661.9,2661.5,3.4976]
[1747982066323,0.02,2661.9,2661.6,0.04]
[1747982066621,0.02,2662.9,2661.6,0.04]
[1747982067217,0.02,2662.9,2661.8,0.04]
[1747982068144,0.02,2662.9,2661.9,0.03755273]
[1747982068436,0.02,2662.9,2662.0,18.351]
[1747982068637,0.02,2662.9,2662.1,13.0971]
[1747982069497,0.02,2662.9,2662.2,18.306]
[1747982069498,1.6547,2662.9,2662.2,18.306]
[1747982070700,1.6547,2662.9,2662.2,29.565]
[1747982070895,1.6547,2662.9,2662.1,1.8351]
[1747982071125,1.6547,2662.9,2662.2,29.562]
[1747982072628,0.02,2662.9,2662.2,29.562]
[1747982072796,0.02,2662.9,2662.4,0.04]
[1747982073122,0.02,2662.9,2662.5,16.211]
[1747982074090,3.77543227,2662.9,2662.5,16.211]
[1747982074288,8.02,2662.9,2662.6,1.6251]
[1747982074491,3.7753438,2662.9,2662.6,1.6251]
[1747982074717,0.02,2662.9,2662.6,1.6251]
[1747982075395,3.77532683,2662.9,2662.6,1.6251]
[1747982075809,3.77532683,2662.9,2662.7,18.3]
[1747982076008,3.77532683,2662.9,2662.7,21.79110761]
[1747982076225,3.75544539,2662.8,2662.7,21.79110761]
[1747982076398,3.75544539,2662.8,2662.5,16.211]
[1747982076399,3.75572748,2662.6,2662.5,16.211]
[1747982076600,11.75572748,2662.6,2662.5,34.511]
[1747982078140,11.75572748,2662.6,2661.7,9.98]
[1747982078141,8.0,2662.5,2661.7,9.98]
[1747982078340,3.75559695,2662.7,2661.9,3.75671512]
[1747982078643,8.02,2662.9,2662.0,21.97456068]
[1747982078943,3.75604765,2662.4,2662.0,18.218]
[1747982079235,8.0,2662.7,2662.0,21.97455551]
[1747982079425,0.02,2662.9,2662.1,11.255]
[1747982079623,3.75544539,2662.8,2662.1,11.255]
[1747982080010,0.02,2662.9,2662.1,11.255]
[1747982080216,3.7558241,2662.6,2662.1,11.255]
[1747982080410,3.75576208,2662.6,2662.1,11.255]
[1747982080616,3.75590552,2662.5,2662.0,20.89093865]
[1747982080944,3.75590552,2662.5,2662.0,2.67293865]
[1747982081139,3.75544539,2662.8,2662.1,29.471]
[1747982081299,3.75612457,2662.4,2662.1,29.471]
[1747982081506,3.75572512,2662.7,2662.0,3.75645519]
[1747982081705,0.02,2662.9,2662.1,29.471]
[1747982081906,3.75595041,2662.5,2662.2,18.217]
[1747982082714,3.75568184,2662.7,2662.2,18.217]
[1747982082920,3.75574471,2662.6,2662.2,18.217]
[1747982083115,0.02,2662.9,2662.2,18.217]
[1747982083348,3.75584396,2662.6,2662.2,18.217]
[1747982083570,3.75577003,2662.6,2662.2,18.217]
[1747982083844,1.35791183,2662.9,2662.2,18.217]
[1747982084048,3.75566124,2662.7,2662.3,11.254]
[1747982084232,0.02,2662.9,2662.3,11.254]
[1747982084436,3.75574118,2662.6,2662.3,11.254]
[1747982084607,3.75588556,2662.5,2662.3,11.254]
[1747982084813,3.75588556,2662.5,2661.9,3.75666166]
[1747982085017,3.75588556,2662.5,2661.7,3.75695694]
[1747982085018,3.75588556,2662.5,2662.0,33.60221814]
[1747982085217,3.75588556,2662.5,2662.1,45.676]
[1747982085418,3.75591602,2662.5,2662.2,29.47]
[1747982085848,3.75603322,2662.4,2662.2,29.47]
[1747982086061,3.75629178,2662.2,2662.1,16.206]
[1747982086364,8.0,2662.7,2662.1,34.422]
[1747982086565,3.7559586,2662.5,2662.1,34.422]
[1747982086730,0.02,2662.9,2662.1,34.422]
[1747982086919,3.75552479,2662.8,2662.2,3.75618343]
[1747982087954,0.02,2662.9,2662.1,34.422]
[1747982088124,0.02,2662.9,2662.3,3.75601034]
[1747982088325,0.02,2662.9,2662.4,0.75123021]
[1747982088525,0.02,2662.9,2662.5,11.254]
[1747982088927,0.02,2662.9,2662.5,15.00982153]
[1747982089146,0.02,2662.9,2662.5,11.254]
[1747982089763,1.5707,2664.0,2662.6,0.55]
[1747982089948,3.75432796,2663.6,2663.0,3.75514178]
[1747982090124,3.75432796,2663.6,2663.1,16.204]
[1747982090322,3.75432796,2663.6,2663.2,11.253]
[1747982090522,0.02,2663.9,2663.3,18.215]
[1747982091144,3.75412684,2663.8,2663.3,21.96502344]
[1747982091380,0.02,2663.9,2663.3,21.96502344]
[1747982092224,3.75427048,2663.7,2663.4,11.253]
[1747982092443,5.42021746,2663.6,2663.5,18.212]
[1747982092643,3.75431746,2663.6,2663.5,18.212]
[1747982093371,1.5955,2663.4,2661.8,3.75681936]
[1747982093670,3.75595912,2662.5,2662.4,18.212]
[1747982094060,3.75578123,2662.6,2662.4,18.212]
[1747982094230,3.75586854,2662.5,2662.4,18.212]
[1747982095226,3.75629178,2662.2,2662.1,16.202]
[1747982095431,3.75629178,2662.2,2662.1,34.415]
[1747982096472,3.75618986,2662.3,2662.1,34.415]
[1747982096771,3.75629178,2662.2,2662.1,34.415]
[1747982097857,3.75629178,2662.2,2662.1,16.202]
[1747982098173,3.75629178,2662.2,2662.1,45.667]
[1747982098830,14.02423623,2662.2,2662.1,34.415]
[1747982099054,3.7574209,2661.4,2661.3,34.418]
[1747982099254,3.7574209,2661.4,2661.3,16.204]
[1747982099466,11.75770329,2661.2,2661.1,0.02]
[1747982099670,13.10215649,2661.2,2661.1,0.02]
[1747982100370,13.10215649,2661.2,2660.2,18.214]
[1747982100371,3.75897455,2660.3,2660.2,18.214]
[1747982100975,3.75887835,2660.4,2660.2,18.214]
[1747982101498,1.6634,2660.9,2660.2,18.234]
[1747982101774,1.5163,2661.3,2660.3,32.4246]
[1747982101932,1.5163,2661.3,2660.6,3.75852286]
[1747982102275,3.75779688,2661.2,2660.7,16.208]
[1747982102436,3.75760846,2661.3,2660.7,18.20466905]
[1747982102638,1.5163,2661.6,2660.9,0.02]
[1747982102833,1.5163,2661.6,2661.0,29.474]
[1747982103042,3.75763493,2661.3,2661.0,29.474]
[1747982103659,3.75763493,2661.3,2661.1,29.474]
[1747982103828,3.7574595,2661.4,2661.1,29.474]
[1747982104032,3.75730457,2661.5,2661.1,29.474]
[1747982104264,1.5163,2661.6,2661.1,29.474]
[1747982104473,3.75749181,2661.4,2661.1,29.474]
[1747982104677,2.40284445,2662.2,2661.1,32.4234]
[1747982104876,1.6516,2662.2,2661.1,32.4234]
[1747982105077,3.75722656,2661.6,2661.1,32.4234]
[1747982106099,3.75702489,2661.7,2661.1,32.4234]
[1747982106450,3.75714651,2661.6,2661.1,32.4234]
[1747982106856,3.75714651,2661.6,2661.2,29.476]
[1747982107190,3.7572263,2661.6,2661.2,29.476]
[1747982107598,3.7574209,2661.4,2661.3,18.22]
[1747982107778,3.75686869,2661.8,2661.3,18.22]
[1747982108473,1.5427,2662.1,2661.3,18.22]
[1747982108474,3.75729201,2661.5,2661.3,18.22]
[1747982108863,3.75727972,2661.5,2661.4,29.389]
[1747982109479,1.5427,2662.1,2661.4,29.389]
[1747982109480,9.5427,2662.1,2661.4,29.389]
[1747982109692,3.75671721,2661.9,2661.4,29.389]
[1747982109997,10.87260482,2662.1,2661.4,18.133]
[1747982109998,3.75727972,2661.5,2661.4,18.133]
[1747982110296,3.75762862,2661.3,2660.8,0.02]
[1747982110476,3.75671512,2661.9,2660.9,29.389]
[1747982110791,8.0,2662.0,2660.9,29.389]
[1747982110792,11.75667013,2662.0,2660.9,29.389]
[1747982110996,1.08726048,2661.9,2660.9,29.389]
[1747982111191,3.75727972,2661.5,2660.9,29.389]
[1747982111402,8.0,2662.0,2661.0,3.75796586]
[1747982111559,3.75728508,2661.5,2660.9,29.389]
[1747982111755,3.756574,2662.0,2661.2,3.75762144]
[1747982112077,3.75665256,2662.0,2661.3,0.02]
[1747982112279,3.75596785,2662.5,2661.4,3.7574209]
[1747982112484,3.75605442,2662.4,2661.6,0.02]
[1747982112793,3.75605442,2662.4,2661.8,3.75677573]
[1747982112998,3.75605442,2662.4,2661.7,16.21]
[1747982112999,1.5349,2662.8,2661.9,1.99667757]
[1747982113230,3.7754019,2662.9,2661.7,16.21]
[1747982113231,3.75572748,2662.6,2662.0,29.39]
[1747982113392,3.75685626,2661.8,2661.7,16.21]
[1747982113756,3.75677431,2661.9,2661.7,45.599]
[1747982114002,3.75685626,2661.8,2661.7,16.21]
[1747982114163,3.75685626,2661.8,2661.7,45.599]
[1747982114902,3.75685626,2661.8,2661.7,34.343]
[1747982115106,3.75685626,2661.8,2661.7,45.599]
[1747982115611,3.75672788,2661.9,2661.7,45.599]
[1747982115792,3.75685626,2661.8,2661.7,45.599]
[1747982116163,3.75685626,2661.8,2661.7,16.21]
[1747982116496,3.75685626,2661.8,2661.7,45.599]
[1747982116676,12.66986399,2661.8,2661.7,34.343]